{"text_format":"1","workbook":"xlsx","n_sheets":1,"sheets":["Plantilla"],"not_rendered":{"charts":0,"images":1,"macros":1,"external_links":0,"defined_names":1,"comments":1,"pivot_tables":0},"unopened":[],"bounds":{"document_bytes":16777216,"sheet_cells":100000,"rows_first":2000,"rows_last":500,"rows_between":2000,"halvings":0,"cell_chars":16384,"cell_head_chars":4096},"cells_cut":0,"cells_raw":0,"read":"whole","date_system":"1900"}

{"sheet":"Plantilla","index":0,"n_rows":340,"n_cols":7,"rows_kept":340,"cut":false,"hidden":false,"merged":[[3,4,3,5],[6,4,6,5],[7,4,7,5],[8,2,8,4]]}
[]
[]
[]
[null,null,null,null,"Plantilla PUC"]
[null,null,null,null,null,"Version 1.3"]
[]
[null,null,"Código*:"]
[null,null,"Periodo*:"]
[null,null,"Los campos con asterisco rojo (*) son obligatorios.                                                                                                N: Cuentas totalizadas, no requiere registro por parte del regulado.                                                                          S: Saldo/Monto que deberá ser ingresado por el regulado"]
[null,null,"GRUPO","CUENTA","DETALLE","MONTO","TIPO"]
[null,null,"ACTIVO","1-0-0-00-00-00-00-00-0","ACTIVO",{"$f":"F12+F42+F46+F50+F57+F88","v":0},"N"]
[null,null,"ACTIVO","1-1-0-00-00-00-00-00-0","DISPONIBILIDADES",{"$f":"F13+F15+F28+F33+F36+F39","v":0},"N"]
[null,null,"ACTIVO","1-1-1-00-00-00-00-00-0","EFECTIVO ",{"$f":"F14","v":0},"N"]
[null,null,"ACTIVO","1-1-1-01-00-00-00-00-0","Caja ",null,"S"]
[null,null,"ACTIVO","1-1-2-00-00-00-00-00-0","DEPÓSITOS A LA VISTA EN BANCOS ",{"$f":"F16+F22","v":0},"N"]
[null,null,"ACTIVO","1-1-2-01-00-00-00-00-0","Depósitos a la Vista en Bancos del País",{"$f":"SUM(F17:F19)+F20","v":0},"N"]
[null,null,"ACTIVO","1-1-2-01-01-00-00-00-0","Bancos del País - Cuentas corrientes no remuneradas ",null,"S"]
[null,null,"ACTIVO","1-1-2-01-02-00-00-00-0","Bancos del País - Cuentas corrientes remuneradas ",null,"S"]
[null,null,"ACTIVO","1-1-2-01-03-00-00-00-0","Bancos del País  - Cuentas de ahorro ",null,"S"]
[null,null,"ACTIVO","1-1-2-01-99-00-00-00-0","(Deterioro - DEPÓSITOS A LA VISTA EN BANCOS DEL PAÍS)",{"$f":"F21","v":0},"N"]
[null,null,"ACTIVO","1-1-2-01-99-01-00-00-0","(Deterioro - Depósitos a la Vista En Bancos Del País",null,"S"]
[null,null,"ACTIVO","1-1-2-02-00-00-00-00-0","Depósitos a la Vista en Bancos Extranjeros ",{"$f":"SUM(F23:F25)+F26","v":0},"N"]
[null,null,"ACTIVO","1-1-2-02-01-00-00-00-0","Bancos Extranjero - Cuentas corrientes no remuneradas ",null,"S"]
[null,null,"ACTIVO","1-1-2-02-02-00-00-00-0","Bancos Extranjero - Cuentas corrientes remuneradas ",null,"S"]
[null,null,"ACTIVO","1-1-2-02-03-00-00-00-0","Bancos Extranjero - Cuentas de ahorro ",null,"S"]
[null,null,"ACTIVO","1-1-2-02-99-00-00-00-0","(Deterioro - DEPÓSITOS A LA VISTA EN BANCOS EXTRANJEROS)",{"$f":"F27","v":0},"N"]
[null,null,"ACTIVO","1-1-2-02-99-01-00-00-0","(Deterioro - Depósitos a la Vista En Bancos del Extranjero ",null,"S"]
[null,null,"ACTIVO","1-1-3-00-00-00-00-00-0","DEPÓSITOS A PLAZO EN BANCOS ",{"$f":"F29+F31","v":0},"N"]
[null,null,"ACTIVO","1-1-3-01-00-00-00-00-0","Depósitos a Plazo Bancos del País",{"$f":"F30","v":0},"N"]
[null,null,"ACTIVO","1-1-3-01-01-00-00-00-0","Bancos del País - Depósitos a Plazo",null,"S"]
[null,null,"ACTIVO","1-1-3-02-00-00-00-00-0","Depósitos a Plazo Bancos del Extranjeros ",{"$f":"F32","v":0},"N"]
[null,null,"ACTIVO","1-1-3-02-01-00-00-00-0","Bancos Extranjeros - Depósitos a Plazo ",null,"S"]
[null,null,"ACTIVO","1-1-4-00-00-00-00-00-0","CUENTAS SWEEP",{"$f":"SUM(F34:F35)","v":0},"N"]
[null,null,"ACTIVO","1-1-4-01-00-00-00-00-0","Bancos del País - Cuentas Sweep ",null,"S"]
[null,null,"ACTIVO","1-1-4-02-00-00-00-00-0","Bancos en el Exterior - Cuentas Sweep ",null,"S"]
[null,null,"ACTIVO","1-1-5-00-00-00-00-00-0","CUENTAS MONEY MARKET",{"$f":"SUM(F37:F38)","v":0},"N"]
[null,null,"ACTIVO","1-1-5-01-00-00-00-00-0","Bancos Del País- Cuentas Money Market ",null,"S"]
[null,null,"ACTIVO","1-1-5-02-00-00-00-00-0","Bancos Del Exterior - Cuentas Money Market ",null,"S"]
[null,null,"ACTIVO","1-1-6-00-00-00-00-00-0","DEPÓSITOS EN OTRAS INSTITUCIONES FINANCIERAS",{"$f":"SUM(F40:F41)","v":0},"N"]
[null,null,"ACTIVO","1-1-6-01-00-00-00-00-0","Depósitos en Otras Instituciones Financieras - del País",null,"S"]
[null,null,"ACTIVO","1-1-6-02-00-00-00-00-0","Depósitos en Otras Instituciones Financieras - del Exterior",null,"S"]
[null,null,"ACTIVO","1-2-0-00-00-00-00-00-0","INVERSIONES EN VALORES",{"$f":"SUM(F43:F45)","v":0},"N"]
[null,null,"ACTIVO","1-2-1-00-00-00-00-00-0","Inversiones en Títulos Valores de Deuda",null,"S"]
[null,null,"ACTIVO","1-2-2-00-00-00-00-00-0","Inversiones en Instrumentos de Capital",null,"S"]
[null,null,"ACTIVO","1-2-3-00-00-00-00-00-0","(Deterioro en Inversiones)",null,"S"]
[null,null,"ACTIVO","1-3-0-00-00-00-00-00-0","HONORARIOS Y COMISIONES POR COBRAR",{"$f":"SUM(F47:F49)","v":0},"N"]
[null,null,"ACTIVO","1-3-1-00-00-00-00-00-0","Comisiones por Cobrar - Servicios local",null,"S"]
[null,null,"ACTIVO","1-3-2-00-00-00-00-00-0","Comisiones por Cobrar - Servicios extranjero",null,"S"]
[null,null,"ACTIVO","1-3-3-00-00-00-00-00-0","Honorarios y Comisiones por Cobrar - Varios",null,"S"]
[null,null,"ACTIVO","1-4-0-00-00-00-00-00-0","CUENTAS POR COBRAR",{"$f":"SUM(F51:F56)","v":0},"N"]
[null,null,"ACTIVO","1-4-1-00-00-00-00-00-0","Cuentas por cobrar - Comerciales/Clientes",null,"S"]
[null,null,"ACTIVO","1-4-2-00-00-00-00-00-0","Cuentas por cobrar - Clientes",null,"S"]
[null,null,"ACTIVO","1-4-3-00-00-00-00-00-0","Cuentas por cobrar - Afiliadas",null,"S"]
[null,null,"ACTIVO","1-4-4-00-00-00-00-00-0","Cuentas por cobrar - Accionistas",null,"S"]
[null,null,"ACTIVO","1-4-5-00-00-00-00-00-0","Cuentas por cobrar - Empleados",null,"S"]
[null,null,"ACTIVO","1-4-6-00-00-00-00-00-0","Cuentas por cobrar - Otras cuentas por cobrar",null,"S"]
[null,null,"ACTIVO","1-5-0-00-00-00-00-00-0","PROPIEDADES, PLANTA Y EQUIPO",{"$f":"F58+F60+F68+F73+F77+F84","v":0},"N"]
[null,null,"ACTIVO","1-5-1-00-00-00-00-00-0","TERRENOS",{"$f":"SUM(F59:F59)","v":0},"N"]
[null,null,"ACTIVO","1-5-1-01-00-00-00-00-0","Terrenos",null,"S"]
[null,null,"ACTIVO","1-5-2-00-00-00-00-00-0","EDIFICACIONES E INSTALACIONES",{"$f":"+F61+F63+F65","v":0},"N"]
[null,null,"ACTIVO","1-5-2-01-00-00-00-00-0","EDIFICACIONES",{"$f":"SUM(F62)","v":0},"N"]
[null,null,"ACTIVO","1-5-2-01-01-00-00-00-0","Edificaciones en uso ",null,"S"]
[null,null,"ACTIVO","1-5-2-02-00-00-00-00-0","INSTALACIONES",{"$f":"SUM(F64)","v":0},"N"]
[null,null,"ACTIVO","1-5-2-02-01-00-00-00-0","Instalaciones en uso ",null,"S"]
[null,null,"ACTIVO","1-5-2-03-00-00-00-00-0","(DEPRECIACIÓN ACUMULADA -EDIFICACIONES E INSTALACIONES)",{"$f":"SUM(F66:F67)","v":0},"N"]
[null,null,"ACTIVO","1-5-2-03-01-00-00-00-0","(Depreciación Edificaciones e Instalaciones - Edificaciones en uso) ",null,"S"]
[null,null,"ACTIVO","1-5-2-03-02-00-00-00-0","(Depreciación Edificaciones e Instalaciones - Instalaciones en uso) ",null,"S"]
[null,null,"ACTIVO","1-5-3-00-00-00-00-00-0","MOBILIARIO Y EQUIPOS",{"$f":"SUM(F69:F72)","v":0},"N"]
[null,null,"ACTIVO","1-5-3-01-00-00-00-00-0","Mobiliario de oficina",null,"S"]
[null,null,"ACTIVO","1-5-3-02-00-00-00-00-0","Equipos De Computación",null,"S"]
[null,null,"ACTIVO","1-5-3-03-00-00-00-00-0","Otros Equipos De Oficina",null,"S"]
[null,null,"ACTIVO","1-5-3-04-00-00-00-00-0","(Depreciación Acumulada De Mobiliario Y Equipos)",null,"S"]
[null,null,"ACTIVO","1-5-4-00-00-00-00-00-0","EQUIPOS DE TRANSPORTE",{"$f":"SUM(F74:F76)","v":0},"N"]
[null,null,"ACTIVO","1-5-4-01-00-00-00-00-0","Vehículos",null,"S"]
[null,null,"ACTIVO","1-5-4-02-00-00-00-00-0","Otros Equipos De Transporte",null,"S"]
[null,null,"ACTIVO","1-5-4-03-00-00-00-00-0","(Depreciación Acumulada Equipos De Transporte)",null,"S"]
[null,null,"ACTIVO","1-5-5-00-00-00-00-00-0","BIENES ADQUIRIDOS EN ARRENDAMIENTO FINANCIERO",{"$f":"SUM(F78:F83)","v":0},"N"]
[null,null,"ACTIVO","1-5-5-01-00-00-00-00-0","Inmuebles Adquiridos En Arrendamiento Financiero",null,"S"]
[null,null,"ACTIVO","1-5-5-02-00-00-00-00-0","Mobiliario Y Equipos De Oficina Adquiridos En Arrendamiento Financiero",null,"S"]
[null,null,"ACTIVO","1-5-5-03-00-00-00-00-0","Equipos De Transporte Adquiridos En Arrendamiento Financiero",null,"S"]
[null,null,"ACTIVO","1-5-5-04-00-00-00-00-0","(Depreciación Acumulada De Bienes Adquiridos En Arrendamiento Financiero)",null,"S"]
[null,null,"ACTIVO","1-5-5-05-00-00-00-00-0","Otros Bienes Adquiridos En Arrendamiento Financiero",null,"S"]
[null,null,"ACTIVO","1-5-5-06-00-00-00-00-0","(Depreciación Acumulada de Otros Bienes Adquiridos En Arrendamiento Financiero)",null,"S"]
[null,null,"ACTIVO","1-5-6-00-00-00-00-00-0","MEJORAS EN PROPIEDADES",{"$f":"+F85","v":0},"N"]
[null,null,"ACTIVO","1-5-6-01-00-00-00-00-0","MEJORAS EN PROPIEDADES ARRENDADAS",{"$f":"SUM(F86:F87)","v":0},"N"]
[null,null,"ACTIVO","1-5-6-01-01-00-00-00-0","Valor de origen de mejoras en propiedades arrendadas",null,"S"]
[null,null,"ACTIVO","1-5-6-01-02-00-00-00-0","(Amortizacion acumulada de mejoras a propiedades tomadas en alquiler)",null,"S"]
[null,null,"ACTIVO","1-6-0-00-00-00-00-00-0","OTROS ACTIVOS",{"$f":"+F89+F109+F111+F115+F117+F121","v":0},"N"]
[null,null,"ACTIVO","1-6-1-00-00-00-00-00-0","GASTOS DIFERIDOS",{"$f":"+F90+F93+F96+F101+F104+F107","v":0},"N"]
[null,null,"ACTIVO","1-6-1-01-00-00-00-00-0","GASTOS DE ORGANIZACION E INSTALACION",{"$f":"SUM(F91:F92)","v":0},"N"]
[null,null,"ACTIVO","1-6-1-01-01-00-00-00-0","Valor de origen de gastos de organizacion e instalacion ",null,"S"]
[null,null,"ACTIVO","1-6-1-01-02-00-00-00-0","(Amortizacion acumulada de gastos de organizacion e instalacion) ",null,"S"]
[null,null,"ACTIVO","1-6-1-02-00-00-00-00-0","SOFTWARE",{"$f":"SUM(F94:F95)","v":0},"N"]
[null,null,"ACTIVO","1-6-1-02-01-00-00-00-0","Valor de origen del software",null,"S"]
[null,null,"ACTIVO","1-6-1-02-02-00-00-00-0","(Amortización acumulada del software)",null,"S"]
[null,null,"ACTIVO","1-6-1-03-00-00-00-00-0","PLUSVALÍA",{"$f":"SUM(F97:F100)","v":0},"N"]
[null,null,"ACTIVO","1-6-1-03-01-00-00-00-0","Valor de origen de plusvalía por adquisición total o fusión",null,"S"]
[null,null,"ACTIVO","1-6-1-03-02-00-00-00-0","(Amortización acumulada de plusvalía por adquisición total o fusión)",null,"S"]
[null,null,"ACTIVO","1-6-1-03-03-00-00-00-0","Valor de origen de plusvalía por adquisición parcial",null,"S"]
[null,null,"ACTIVO","1-6-1-03-04-00-00-00-0","(Amortización acumulada de plusvalía por adquisición parcial)",null,"S"]
[null,null,"ACTIVO","1-6-1-04-00-00-00-00-0","LICENCIAS COMPRADAS",{"$f":"SUM(F102:F103)","v":0},"N"]
[null,null,"ACTIVO","1-6-1-04-01-00-00-00-0","Valor de origen de licencias compradas",null,"S"]
[null,null,"ACTIVO","1-6-1-04-02-00-00-00-0","(Amortización acumulada de licencias compradas)",null,"S"]
[null,null,"ACTIVO","1-6-1-05-00-00-00-00-0","OTROS GASTOS DIFERIDOS",{"$f":"SUM(F105:F106)","v":0},"N"]
[null,null,"ACTIVO","1-6-1-05-01-00-00-00-0","Valor de origen de otros gastos diferidos",null,"S"]
[null,null,"ACTIVO","1-6-1-05-02-00-00-00-0","(Amortización acumulada de otros gastos diferidos)",null,"S"]
[null,null,"ACTIVO","1-6-1-06-00-00-00-00-0","GASTOS EN OPERACIONES DE FINANCIAMIENTOS",{"$f":"SUM(F108:F108)","v":0},"N"]
[null,null,"ACTIVO","1-6-1-06-01-00-00-00-0","Gastos en Operaciones de Financiamiento",null,"S"]
[null,null,"ACTIVO","1-6-2-00-00-00-00-00-0","OFICINA PRINCIPAL Y SUCURSALES",{"$f":"SUM(F110)","v":0},"N"]
[null,null,"ACTIVO","1-6-2-01-00-00-00-00-0","Oficina Principal y Sucursales",null,"S"]
[null,null,"ACTIVO","1-6-3-00-00-00-00-00-0","DEPÓSITOS EN GARANTÍA",{"$f":"SUM(F112:F114)","v":0},"N"]
[null,null,"ACTIVO","1-6-3-01-00-00-00-00-0","Depósitos de fianzas",null,"S"]
[null,null,"ACTIVO","1-6-3-02-00-00-00-00-0","Depósitos de arrendamiento de bienes inmuebles",null,"S"]
[null,null,"ACTIVO","1-6-3-03-00-00-00-00-0","Otros depósitos en garantía",null,"S"]
[null,null,"ACTIVO","1-6-4-00-00-00-00-00-0","IMPUESTO SOBRE LA RENTA DIFERIDO",{"$f":"SUM(F116)","v":0},"N"]
[null,null,"ACTIVO","1-6-4-01-00-00-00-00-0","Impuesto Sobre La Renta Diferido",null,"S"]
[null,null,"ACTIVO","1-6-5-00-00-00-00-00-0","DEPÓSITOS REALIZADOS POR LA INSTITUCIÓN POR REQUERIMIENTOS JUDICIALES Y ADMINISTRATIVOS",{"$f":"SUM(F118)","v":0},"N"]
[null,null,"ACTIVO","1-6-5-01-00-00-00-00-0","Depósitos realizados por la Institución por requerimientos judiciales y administrativos",null,"S"]
[null,null,"ACTIVO","1-6-5-99-00-00-00-00-0","(DETERIORO - DEPÓSITOS REALIZADOS POR LA INSTITUCIÓN POR REQUERIMIENTOS JUDICIALES Y ADMINISTRATIVOS)",{"$f":"SUM(F120)","v":0},"N"]
[null,null,"ACTIVO","1-6-5-99-01-00-00-00-0","(Deterioro - Depósitos realizados por la Institución por requerimientos judiciales y administrativos)",null,"S"]
[null,null,"ACTIVO","1-6-6-00-00-00-00-00-0","VARIOS",{"$f":"F122+F135+F140+F142+F144","v":0},"N"]
[null,null,"ACTIVO","1-6-6-01-00-00-00-00-0","GASTOS PAGADOS POR ANTICIPADO",{"$f":"F123+F126+F129","v":0},"N"]
[null,null,"ACTIVO","1-6-6-01-01-00-00-00-0","Gastos pagados por Anticipado",{"$f":"SUM(F124:F125)","v":0},"N"]
[null,null,"ACTIVO","1-6-6-01-01-01-00-00-0","Existencias de papelería y efectos varios ",null,"S"]
[null,null,"ACTIVO","1-6-6-01-01-02-00-00-0","Anticipos a proveedores ",null,"S"]
[null,null,"ACTIVO","1-6-6-01-02-00-00-00-0","Impuestos pagados por anticipado",{"$f":"SUM(F127:F128)","v":0},"N"]
[null,null,"ACTIVO","1-6-6-01-02-01-00-00-0","Impuestos pagados por anticipado",null,"S"]
[null,null,"ACTIVO","1-6-6-01-02-02-00-00-0","Otros impuestos pagados por anticipado",null,"S"]
[null,null,"ACTIVO","1-6-6-01-03-00-00-00-0","Otros gastos pagados por anticipado",{"$f":"SUM(F130:F134)","v":0},"N"]
[null,null,"ACTIVO","1-6-6-01-03-01-00-00-0","Seguros y fianzas Pagados por anticipado",null,"S"]
[null,null,"ACTIVO","1-6-6-01-03-02-00-00-0","Gastos en publicidad y mercadeo ",null,"S"]
[null,null,"ACTIVO","1-6-6-01-03-03-00-00-0","Suscripciones pagadas por anticipado ",null,"S"]
[null,null,"ACTIVO","1-6-6-01-03-04-00-00-0","Anticipos de sueldos al personal ",null,"S"]
[null,null,"ACTIVO","1-6-6-01-03-05-00-00-0","Otros gastos pagados por anticipado ",null,"S"]
[null,null,"ACTIVO","1-6-6-02-00-00-00-00-0","EROGACIONES RECUPERABLES",{"$f":"SUM(F136:F139)","v":0},"N"]
[null,null,"ACTIVO","1-6-6-02-01-00-00-00-0","Por cobro judicial o extrajudicial",null,"S"]
[null,null,"ACTIVO","1-6-6-02-02-00-00-00-0","Por servicios bancarios",null,"S"]
[null,null,"ACTIVO","1-6-6-02-03-00-00-00-0","Por gastos de notaria y registro",null,"S"]
[null,null,"ACTIVO","1-6-6-02-04-00-00-00-0","Erogaciones recuperables varias",null,"S"]
[null,null,"ACTIVO","1-6-6-03-00-00-00-00-0","FONDO DE CESANTIA Y PRIMA DE ANTIGÜEDAD",{"$f":"SUM(F141)","v":0},"N"]
[null,null,"ACTIVO","1-6-6-03-01-00-00-00-0","Fondo de Cesantia y Prima de Antigüedad",null,"S"]
[null,null,"ACTIVO","1-6-6-04-00-00-00-00-0","OTROS ACTIVOS",{"$f":"SUM(F143)","v":0},"N"]
[null,null,"ACTIVO","1-6-6-04-01-00-00-00-0","Otros Activos",null,"S"]
[null,null,"ACTIVO","1-6-6-05-00-00-00-00-0","(DETERIORO -–VARIOS)",{"$f":"F145","v":0},"N"]
[null,null,"ACTIVO","1-6-6-05-01-00-00-00-0","(Deterioro -–Varios)",null,"S"]
[null,null,"PASIVO","2-0-0-00-00-00-00-00-0","PASIVOS",{"$f":"F147+F159","v":0},"N"]
[null,null,"PASIVO","2-1-0-00-00-00-00-00-0","CUENTAS POR PAGAR",{"$f":"SUM(F148:F156)","v":0},"N"]
[null,null,"PASIVO","2-1-1-00-00-00-00-00-0","Cuentas por pagar - proveedores ",null,"S"]
[null,null,"PASIVO","2-1-2-00-00-00-00-00-0","Cuentas por pagar - accionistas",null,"S"]
[null,null,"PASIVO","2-1-3-00-00-00-00-00-0","Cuentas por pagar - comerciales",null,"S"]
[null,null,"PASIVO","2-1-4-00-00-00-00-00-0","Cuentas por pagar - afiliadas",null,"S"]
[null,null,"PASIVO","2-1-5-00-00-00-00-00-0","Gastos acumulados por pagar ",null,"S"]
[null,null,"PASIVO","2-1-6-00-00-00-00-00-0","Obligaciones con Bancos y otras instituciones financieras por pagar a corto plazo",null,"S"]
[null,null,"PASIVO","2-1-7-00-00-00-00-00-0","Adelantos recibidos de clientes",null,"S"]
[null,null,"PASIVO","2-1-8-00-00-00-00-00-0","I.T.B.M.S. por Pagar",null,"S"]
[null,null,"PASIVO","2-1-9-00-00-00-00-00-0","RESERVAS",{"$f":"SUM(F157:F158)","v":0},"N"]
[null,null,"PASIVO","2-1-9-01-00-00-00-00-0","Reserva de Fondo de Cesantia y Prima de Antigüedad ",null,"S"]
[null,null,"PASIVO","2-1-9-02-00-00-00-00-0","Reservas - Diversas",null,"S"]
[null,null,"PASIVO","2-2-0-00-00-00-00-00-0","OBLIGACIONES",{"$f":"F160+F162+F183","v":0},"N"]
[null,null,"PASIVO","2-2-1-00-00-00-00-00-0","OBLIGACIONES CON BANCOS Y OTRAS INSTITUCIONES FINANCIERAS POR PAGAR A LARGO PLAZO",{"$f":"SUM(F161)","v":0},"N"]
[null,null,"PASIVO","2-2-1-01-00-00-00-00-0","Prestamos por pagar",null,"S"]
[null,null,"PASIVO","2-2-2-00-00-00-00-00-0","PRESTACIONES, RETENCIONES, SALARIOS Y COMPENSACIONES LABORALES POR PAGAR",{"$f":"F163+F171+F177","v":0},"N"]
[null,null,"PASIVO","2-2-2-01-00-00-00-00-0","PRESTACIONES PATRONALES POR PAGAR",{"$f":"SUM(F164:F170)","v":0},"N"]
[null,null,"PASIVO","2-2-2-01-01-00-00-00-0","Prestaciones patronales por pagar - Seguro Educativo",null,"S"]
[null,null,"PASIVO","2-2-2-01-02-00-00-00-0","Prestaciones patronales por pagar - Seguro Social",null,"S"]
[null,null,"PASIVO","2-2-2-01-03-00-00-00-0","Prestaciones patronales por pagar - Seguro colectivo ",null,"S"]
[null,null,"PASIVO","2-2-2-01-04-00-00-00-0","Prestaciones patronales por pagar - Riesgos Profesionales",null,"S"]
[null,null,"PASIVO","2-2-2-01-05-00-00-00-0","Prestaciones patronales por pagar - Prima de Antigüedad",null,"S"]
[null,null,"PASIVO","2-2-2-01-06-00-00-00-0","Prestaciones patronales por pagar - Fondo de Cesantía",null,"S"]
[null,null,"PASIVO","2-2-2-01-07-00-00-00-0","Prestaciones patronales por pagar - Otros aportes patronales por pagar ",null,"S"]
[null,null,"PASIVO","2-2-2-02-00-00-00-00-0","APORTACIONES LABORALES RETENIDAS POR PAGAR",{"$f":"SUM(F172:F176)","v":0},"N"]
[null,null,"PASIVO","2-2-2-02-01-00-00-00-0","Prestaciones laborales por pagar - Impuesto Sobre la Renta",null,"S"]
[null,null,"PASIVO","2-2-2-02-02-00-00-00-0","Prestaciones laborales por pagar - Seguro  educativo",null,"S"]
[null,null,"PASIVO","2-2-2-02-03-00-00-00-0","Prestaciones laborales por pagar - Seguro Social",null,"S"]
[null,null,"PASIVO","2-2-2-02-04-00-00-00-0","Prestaciones laborales por pagar - Seguro colectivo ",null,"S"]
[null,null,"PASIVO","2-2-2-02-05-00-00-00-0","Prestaciones laborales por pagar - Otros aportes laborales retenidos por pagar ",null,"S"]
[null,null,"PASIVO","2-2-2-03-00-00-00-00-0","SALARIOS Y COMPENSACIONES LABORALES POR PAGAR",{"$f":"SUM(F178:F182)","v":0},"N"]
[null,null,"PASIVO","2-2-2-03-01-00-00-00-0","Sueldos de empleados por pagar ",null,"S"]
[null,null,"PASIVO","2-2-2-03-02-00-00-00-0","Decimo por Pagar",null,"S"]
[null,null,"PASIVO","2-2-2-03-03-00-00-00-0","Bonificación variable al personal por pagar ",null,"S"]
[null,null,"PASIVO","2-2-2-03-04-00-00-00-0","Vacaciones por Pagar",null,"S"]
[null,null,"PASIVO","2-2-2-03-05-00-00-00-0","Otras obligaciones contractuales con el personal por pagar ",null,"S"]
[null,null,"PASIVO","2-2-3-00-00-00-00-00-0","CUENTAS POR PAGAR VARIAS",{"$f":"F184+F186+F188+F190+F192+F194+F197+F202+F204+F206+F210+F212+F214","v":0},"N"]
[null,null,"PASIVO","2-2-3-01-00-00-00-00-0","ALQUILERES POR PAGAR",{"$f":"SUM(F185)","v":0},"N"]
[null,null,"PASIVO","2-2-3-01-01-00-00-00-0","Alquileres por pagar ",null,"S"]
[null,null,"PASIVO","2-2-3-02-00-00-00-00-0","SERVICIOS POR PAGAR",{"$f":"SUM(F187)","v":0},"N"]
[null,null,"PASIVO","2-2-3-02-01-00-00-00-0","Servicios por pagar ",null,"S"]
[null,null,"PASIVO","2-2-3-03-00-00-00-00-0","DIVIDENDOS POR PAGAR",{"$f":"SUM(F189)","v":0},"N"]
[null,null,"PASIVO","2-2-3-03-01-00-00-00-0","Dividendos por pagar ",null,"S"]
[null,null,"PASIVO","2-2-3-04-00-00-00-00-0","DIETAS Y OTRAS CUENTAS POR PAGAR A DIRECTORES",{"$f":"SUM(F191)","v":0},"N"]
[null,null,"PASIVO","2-2-3-04-01-00-00-00-0","Dietas y otras cuentas por pagar a directores ",null,"S"]
[null,null,"PASIVO","2-2-3-05-00-00-00-00-0","HONORARIOS POR PAGAR",{"$f":"SUM(F193)","v":0},"N"]
[null,null,"PASIVO","2-2-3-05-01-00-00-00-0","Honorarios por pagar ",null,"S"]
[null,null,"PASIVO","2-2-3-06-00-00-00-00-0","IMPUESTOS POR PAGAR",{"$f":"SUM(F195:F196)","v":0},"N"]
[null,null,"PASIVO","2-2-3-06-01-00-00-00-0","Impuesto sobre la Renta por pagar ",null,"S"]
[null,null,"PASIVO","2-2-3-06-02-00-00-00-0","Otros impuestos por pagar por cuenta de la institución ",null,"S"]
[null,null,"PASIVO","2-2-3-07-00-00-00-00-0","IMPUESTOS RETENIDOS",{"$f":"SUM(F198:F201)","v":0},"N"]
[null,null,"PASIVO","2-2-3-07-01-00-00-00-0","Impuestos retenidos al personal ",null,"S"]
[null,null,"PASIVO","2-2-3-07-02-00-00-00-0","Impuestos retenidos a accionistas ",null,"S"]
[null,null,"PASIVO","2-2-3-07-03-00-00-00-0","Impuestos retenidos a terceros ",null,"S"]
[null,null,"PASIVO","2-2-3-07-04-00-00-00-0","Otros impuestos retenidos a terceros ",null,"S"]
[null,null,"PASIVO","2-2-3-08-00-00-00-00-0","RETENCIONES POR ORDEN JUDICIAL",{"$f":"SUM(F203)","v":0},"N"]
[null,null,"PASIVO","2-2-3-08-01-00-00-00-0","Retenciones por orden judicial ",null,"S"]
[null,null,"PASIVO","2-2-3-09-00-00-00-00-0","OTRAS RETENCIONES A TERCEROS POR PAGAR",{"$f":"SUM(F205)","v":0},"N"]
[null,null,"PASIVO","2-2-3-09-01-00-00-00-0","Otras retenciones a terceros por pagar ",null,"S"]
[null,null,"PASIVO","2-2-3-10-00-00-00-00-0","CUENTAS POR PAGAR RELACIONADAS",{"$f":"SUM(F207:F209)","v":0},"N"]
[null,null,"PASIVO","2-2-3-10-01-00-00-00-0","Cuentas por Pagar - Relacionadas",null,"S"]
[null,null,"PASIVO","2-2-3-10-02-00-00-00-0","Cuentas por Pagar - Accionistas",null,"S"]
[null,null,"PASIVO","2-2-3-10-03-00-00-00-0","Cuentas por Pagar - Personal Clave de la Gerencia",null,"S"]
[null,null,"PASIVO","2-2-3-11-00-00-00-00-0","OTRAS CUENTAS POR PAGAR VARIAS",{"$f":"SUM(F211)","v":0},"N"]
[null,null,"PASIVO","2-2-3-11-01-00-00-00-0","Otras cuentas por pagar varias ",null,"S"]
[null,null,"PASIVO","2-2-3-12-00-00-00-00-0","OFICINA PRINCIPAL Y SUCURSALES",{"$f":"SUM(F213)","v":0},"N"]
[null,null,"PASIVO","2-2-3-12-01-00-00-00-0","Oficina principal y sucursales ",null,"S"]
[null,null,"PASIVO","2-2-3-13-00-00-00-00-0","IMPUESTO SOBRE LA RENTA DIFERIDO",{"$f":"SUM(F215)","v":0},"N"]
[null,null,"PASIVO","2-2-3-13-01-00-00-00-0","Impuesto sobre la renta diferido ",null,"S"]
[null,null,"PATRIMONIO","3-0-0-00-00-00-00-00-0","PATRIMONIO",{"$f":"F217+F220+F222+F232+F233+F234+F230","v":0},"N"]
[null,null,"PATRIMONIO","3-1-0-00-00-00-00-00-0","CAPITAL SOCIAL",{"$f":"SUM(F218:F219)","v":0},"N"]
[null,null,"PATRIMONIO","3-1-1-00-00-00-00-00-0","Acciones comunes",null,"S"]
[null,null,"PATRIMONIO","3-1-2-00-00-00-00-00-0","Capital pagado ",null,"S"]
[null,null,"PATRIMONIO","3-2-0-00-00-00-00-00-0","RESERVAS DE CAPITAL",{"$f":"SUM(F221)","v":0},"N"]
[null,null,"PATRIMONIO","3-2-1-00-00-00-00-00-0","Reservas de Capital",null,"S"]
[null,null,"PATRIMONIO","3-3-0-00-00-00-00-00-0","RESULTADOS ACUMULADOS",{"$f":"F223+F227","v":0},"N"]
[null,null,"PATRIMONIO","3-3-1-01-00-00-00-00-0","INCREMENTOS AL PATRIMONIO",{"$f":"SUM(F224:F226)","v":0},"N"]
[null,null,"PATRIMONIO","3-3-1-01-01-00-00-00-0","Utilidades Retenidas",null,"S"]
[null,null,"PATRIMONIO","3-3-1-01-02-00-00-00-0","Ganancias del Ejercicio",null,"S"]
[null,null,"PATRIMONIO","3-3-1-01-03-00-00-00-0","Ganancias Acumuladas de Ejercicios Anteriores",null,"S"]
[null,null,"PATRIMONIO","3-3-1-02-00-00-00-00-0","(REDUCCIONES AL PATRIMONIO)",{"$f":"SUM(F228:F229)","v":0},"N"]
[null,null,"PATRIMONIO","3-3-1-02-01-00-00-00-0","(Perdidas del Ejercicio) ",null,"S"]
[null,null,"PATRIMONIO","3-3-1-02-02-00-00-00-0","(Perdidas Acumuladas de Ejercicios Anteriores) ",null,"S"]
[null,null,"PATRIMONIO","3-4-0-00-00-00-00-00-0","(IMPUESTO COMPLEMENTARIO)",{"$f":"SUM(F231)","v":0},"N"]
[null,null,"PATRIMONIO","3-4-1-00-00-00-00-00-0","(Impuestro Complementario)",null,"S"]
[null,null,"PATRIMONIO","3-5-0-00-00-00-00-00-0","Superávit por Revaluación",null,"S"]
[null,null,"PATRIMONIO","3-6-0-00-00-00-00-00-0","Cambios en valor razonable",null,"S"]
[null,null,"PATRIMONIO","3-7-0-00-00-00-00-00-0","(Acciones en Tesorería)",null,"S"]
[null,null,"INGRESOS","4-0-0-00-00-00-00-00-0","INGRESOS",{"$f":"F236","v":0},"N"]
[null,null,"INGRESOS","4-1-1-00-00-00-00-00-0","INGRESOS",{"$f":"SUM(F237:F246)","v":0},"N"]
[null,null,"INGRESOS","4-1-1-01-00-00-00-00-0","Ingresos por comisiones",null,"S"]
[null,null,"INGRESOS","4-1-1-02-00-00-00-00-0","Ingresos por consultorías y asesorías",null,"S"]
[null,null,"INGRESOS","4-1-1-03-00-00-00-00-0","Fluctuación de monedas",null,"S"]
[null,null,"INGRESOS","4-1-1-04-00-00-00-00-0","Retrocesiones Locales",null,"S"]
[null,null,"INGRESOS","4-1-1-05-00-00-00-00-0","Retrocesiones Extranjeras",null,"S"]
[null,null,"INGRESOS","4-1-1-06-00-00-00-00-0","Ingresos por intereses  ",null,"S"]
[null,null,"INGRESOS","4-1-1-07-00-00-00-00-0","Ingresos por intereses  (Depósitos en Bancos)",null,"S"]
[null,null,"INGRESOS","4-1-1-08-00-00-00-00-0","Ingresos Exentos",null,"S"]
[null,null,"INGRESOS","4-1-1-09-00-00-00-00-0","Ganancia en venta de titulos valores",null,"S"]
[null,null,"INGRESOS","4-1-1-10-00-00-00-00-0","Otros ingresos",null,"S"]
[null,null,"GASTOS","5-0-0-00-00-00-00-00-0","GASTOS",{"$f":"F248+F259+F328+F333","v":0},"N"]
[null,null,"GASTOS","5-1-0-00-00-00-00-00-0","GASTOS FINANCIEROS",{"$f":"F249","v":0},"N"]
[null,null,"GASTOS","5-1-1-00-00-00-00-00-0","GASTOS FINANCIEROS",{"$f":"F250+SUM(F253:F258)","v":0},"N"]
[null,null,"GASTOS","5-1-1-01-00-00-00-00-0","Gastos por obligaciones con Bancos y otras instituciones financieras.",{"$f":"SUM(F251:F252)","v":0},"N"]
[null,null,"GASTOS","5-1-1-01-01-00-00-00-0","Gastos por obligaciones con bancos y otras instituciones financieras  del País.",null,"S"]
[null,null,"GASTOS","5-1-1-01-02-00-00-00-0","Gastos por obligaciones con bancos y otras instituciones financieras  del  Exterior.",null,"S"]
[null,null,"GASTOS","5-1-1-02-00-00-00-00-0","Otros Gastos Financieros",null,"S"]
[null,null,"GASTOS","5-1-1-03-00-00-00-00-0","Deterioro Financiero",null,"S"]
[null,null,"GASTOS","5-1-1-04-00-00-00-00-0","Pérdidas en cambio de Monedas",null,"S"]
[null,null,"GASTOS","5-1-1-05-00-00-00-00-0","Pérdidas en Activos Financieros",null,"S"]
[null,null,"GASTOS","5-1-1-06-00-00-00-00-0","Gastos por Perdidas en Portafolio de Inversiones Permanentes en Empresas Filiales Afiliadas y Sucursales",null,"S"]
[null,null,"GASTOS","5-1-1-07-00-00-00-00-0","Pérdidas por Ajuste a valor de mercado",null,"S"]
[null,null,"GASTOS","5-2-0-00-00-00-00-00-0","GASTOS GENERALES Y ADMINISTRATIVOS",{"$f":"F260","v":0},"N"]
[null,null,"GASTOS","5-2-1-00-00-00-00-00-0","GASTOS GENERALES Y ADMINISTRATIVOS",{"$f":"F261+F264+SUM(F269:F289)+F293+F297+F299+F313","v":0},"N"]
[null,null,"GASTOS","5-2-1-01-00-00-00-00-0","Honorarios y Comisiones",{"$f":"SUM(F262:F263)","v":0},"N"]
[null,null,"GASTOS","5-2-1-01-01-00-00-00-0","  Gastos por comisiones por servicios bancarios",null,"S"]
[null,null,"GASTOS","5-2-1-01-02-00-00-00-0","  Gastos por otras comisiones y honorarios profesionales relativos al mercado de valores (otras comisiones y honorarios).",null,"S"]
[null,null,"GASTOS","5-2-1-02-00-00-00-00-0","Gastos de Personal",{"$f":"+F265","v":0},"N"]
[null,null,"GASTOS","5-2-1-02-01-00-00-00-0","Salarios",{"$f":"SUM(F266:F268)","v":0},"N"]
[null,null,"GASTOS","5-2-1-02-01-01-00-00-0","     Salarios de Personal Permanente",null,"S"]
[null,null,"GASTOS","5-2-1-02-01-02-00-00-0","     Salarios de Personal Contratado",null,"S"]
[null,null,"GASTOS","5-2-1-02-01-03-00-00-0","     Salarios de Personal en Período de Prueba",null,"S"]
[null,null,"GASTOS","5-2-1-03-00-00-00-00-0","Bonificaciones",null,"S"]
[null,null,"GASTOS","5-2-1-04-00-00-00-00-0","Seguro Colectivo",null,"S"]
[null,null,"GASTOS","5-2-1-05-00-00-00-00-0","Aportaciones Patronales",null,"S"]
[null,null,"GASTOS","5-2-1-06-00-00-00-00-0","Fondo de Cesantia y Prima de Antigüedad",null,"S"]
[null,null,"GASTOS","5-2-1-07-00-00-00-00-0","Fondo de Pensiones y Jubilaciones",null,"S"]
[null,null,"GASTOS","5-2-1-08-00-00-00-00-0","Vacaciones",null,"S"]
[null,null,"GASTOS","5-2-1-09-00-00-00-00-0","Dietas a Directores",null,"S"]
[null,null,"GASTOS","5-2-1-10-00-00-00-00-0","Viáticos y Asignaciones por Viajes",null,"S"]
[null,null,"GASTOS","5-2-1-11-00-00-00-00-0","Gastos de representación",null,"S"]
[null,null,"GASTOS","5-2-1-12-00-00-00-00-0","Otras Retribuciones",null,"S"]
[null,null,"GASTOS","5-2-1-13-00-00-00-00-0","Atenciones y Eventos Especiales al Personal",null,"S"]
[null,null,"GASTOS","5-2-1-14-00-00-00-00-0","Capacitación",null,"S"]
[null,null,"GASTOS","5-2-1-15-00-00-00-00-0","Otros Gastos de Personal",null,"S"]
[null,null,"GASTOS","5-2-1-16-00-00-00-00-0","Servicios de Aseo, Limpieza y Fumigación",null,"S"]
[null,null,"GASTOS","5-2-1-17-00-00-00-00-0","Comisiones por Asesoria",null,"S"]
[null,null,"GASTOS","5-2-1-18-00-00-00-00-0","Audotría Externa",null,"S"]
[null,null,"GASTOS","5-2-1-19-00-00-00-00-0","Consultoría Externa",null,"S"]
[null,null,"GASTOS","5-2-1-20-00-00-00-00-0","Pasajes y Transportes",null,"S"]
[null,null,"GASTOS","5-2-1-21-00-00-00-00-0","Internet y Celular",null,"S"]
[null,null,"GASTOS","5-2-1-22-00-00-00-00-0","Cuentas Incobrables",null,"S"]
[null,null,"GASTOS","5-2-1-23-00-00-00-00-0","Gastos de Seguros",{"$f":"SUM(F290:F292)","v":0},"N"]
[null,null,"GASTOS","5-2-1-23-01-00-00-00-0","Seguro sobre dinero y valores",null,"S"]
[null,null,"GASTOS","5-2-1-23-02-00-00-00-0","Seguros por Errores y Omisiones",null,"S"]
[null,null,"GASTOS","5-2-1-23-03-00-00-00-0","Otros gastos de Seguros ",null,"S"]
[null,null,"GASTOS","5-2-1-24-00-00-00-00-0","Gastos por Impuestos y Contribuciones",{"$f":"SUM(F294:F296)","v":0},"N"]
[null,null,"GASTOS","5-2-1-24-01-00-00-00-0","  Impuestos Municipales",null,"S"]
[null,null,"GASTOS","5-2-1-24-02-00-00-00-0","  Recargos e Intereses monetarios pago tardía de impuestos",null,"S"]
[null,null,"GASTOS","5-2-1-24-03-00-00-00-0","  Otros impuestos y contribuciones",null,"S"]
[null,null,"GASTOS","5-2-1-25-00-00-00-00-0","Gastos por mantenimiento y reparaciones",{"$f":"F298","v":0},"N"]
[null,null,"GASTOS","5-2-1-25-01-00-00-00-0","  Mantenimiento y Reparaciones para Bienes de Uso",null,"S"]
[null,null,"GASTOS","5-2-1-26-00-00-00-00-0","Gastos por Depreciaciones y Amortizaciones",{"$f":"F300+F306","v":0},"N"]
[null,null,"GASTOS","5-2-1-26-01-00-00-00-0"," Gasto por depreciación de bienes de uso",{"$f":"SUM(F301:F305)","v":0},"N"]
[null,null,"GASTOS","5-2-1-26-01-01-00-00-0","    Gasto por depreciación de edificaciones e instalaciones",null,"S"]
[null,null,"GASTOS","5-2-1-26-01-02-00-00-0","    Gastos por depreciación de mobiliario y equipos",null,"S"]
[null,null,"GASTOS","5-2-1-26-01-03-00-00-0","    Gasto por depreciación de equipos de transporte",null,"S"]
[null,null,"GASTOS","5-2-1-26-01-04-00-00-0","    Depreciación de bienes adquiridos en arrendamiento financiero",null,"S"]
[null,null,"GASTOS","5-2-1-26-01-05-00-00-0","    Depreciación de otros bienes adquiridos en arrendameinto financiero",null,"S"]
[null,null,"GASTOS","5-2-1-26-02-00-00-00-0","Amortización de Gastos Diferidos",{"$f":"SUM(F307:F312)","v":0},"N"]
[null,null,"GASTOS","5-2-1-26-02-01-00-00-0","Gastos por amortización de gastos de organización e instalaciones",null,"S"]
[null,null,"GASTOS","5-2-1-26-02-02-00-00-0","Gastos por amortización de mejoras a propiedades tomadas en alquiler",null,"S"]
[null,null,"GASTOS","5-2-1-26-02-03-00-00-0","Gastos por amortización de software",null,"S"]
[null,null,"GASTOS","5-2-1-26-02-04-00-00-0","Gastos por amortización de gasto de plusvalía",null,"S"]
[null,null,"GASTOS","5-2-1-26-02-05-00-00-0","Gastos por amortización de gasto de licencias compradas",null,"S"]
[null,null,"GASTOS","5-2-1-26-02-06-00-00-0","Gastos por amortización de otros gastos diferidos",null,"S"]
[null,null,"GASTOS","5-2-1-27-00-00-00-00-0","Otros Gastos Generales y Administrativos",{"$f":"SUM(F314:F327)","v":0},"N"]
[null,null,"GASTOS","5-2-1-27-01-00-00-00-0","Agua, Electricidad y Gas",null,"S"]
[null,null,"GASTOS","5-2-1-27-02-00-00-00-0","Alquileres",null,"S"]
[null,null,"GASTOS","5-2-1-27-03-00-00-00-0","Papelería y Efectos Varios",null,"S"]
[null,null,"GASTOS","5-2-1-27-04-00-00-00-0","Materiales y Utiles de Aseo",null,"S"]
[null,null,"GASTOS","5-2-1-27-05-00-00-00-0","Gastos Legales",null,"S"]
[null,null,"GASTOS","5-2-1-27-06-00-00-00-0","Suscripciones",null,"S"]
[null,null,"GASTOS","5-2-1-27-07-00-00-00-0","Tarifa de Supervisión",null,"S"]
[null,null,"GASTOS","5-2-1-27-08-00-00-00-0","Tarifa de Registros",null,"S"]
[null,null,"GASTOS","5-2-1-27-09-00-00-00-0","Propaganda y Publicidad",null,"S"]
[null,null,"GASTOS","5-2-1-27-10-00-00-00-0","Multas y Sanciones",null,"S"]
[null,null,"GASTOS","5-2-1-27-11-00-00-00-0","Relaciones Públicas",null,"S"]
[null,null,"GASTOS","5-2-1-27-12-00-00-00-0","Servicios de Fotocopiado",null,"S"]
[null,null,"GASTOS","5-2-1-27-13-00-00-00-0","Atenciones a Clientes",null,"S"]
[null,null,"GASTOS","5-2-1-27-14-00-00-00-0","Otros Gastos Generales y Administrativos diversos",null,"S"]
[null,null,"GASTOS","5-3-0-00-00-00-00-00-0","Gastos Extraordinarios",{"$f":"F329","v":0},"N"]
[null,null,"GASTOS","5-3-1-00-00-00-00-00-0","  Otros Gastos Varios",{"$f":"SUM(F330:F332)","v":0},"N"]
[null,null,"GASTOS","5-3-1-01-00-00-00-00-0","    Donacions efectuadas por la entidad",null,"S"]
[null,null,"GASTOS","5-3-1-02-00-00-00-00-0","    Pérdidas por Siniestros, Robos Asaltos y Fraudes",null,"S"]
[null,null,"GASTOS","5-3-1-03-00-00-00-00-0","    Otros Gastos Extraordinarios",null,"S"]
[null,null,"GASTOS","5-4-0-00-00-00-00-00-0","Impuestos sobre la renta",{"$f":"SUM(F334:F336)","v":0},"N"]
[null,null,"GASTOS","5-4-1-00-00-00-00-00-0","  Impuesto Sobre la Renta",null,"S"]
[null,null,"GASTOS","5-4-2-00-00-00-00-00-0","  (Impuesto sobre la renta diferido Activo)",null,"S"]
[null,null,"GASTOS","5-4-3-00-00-00-00-00-0","  Impuesto sobre la renta diferido  Pasivo",null,"S"]
[null,null,"RESULTADO","6-0-0-00-00-00-00-00-0","Resultado del Ejercicio (Utilidad/Pérdida)",{"$f":"F235-F247","v":0},"N"]
[null,null,"ADMINISTRACIÓN DE ACTIVOS","7-0-0-00-00-00-00-00-0","ADMINISTRACIÓN DE ACTIVOS / CARTERA BAJO ASESORIA",{"$f":"SUM(F339:F340)","v":0},"N"]
[null,null,"ADMINISTRACIÓN DE ACTIVOS","7-1-0-00-00-00-00-00-0","Activos administrados de Clientes (Administradora de Inversiones)",null,"S"]
[null,null,"ADMINISTRACIÓN DE ACTIVOS","7-2-0-00-00-00-00-00-0","Cartera Bajo Asesoria (Asesores de Inversión)",null,"S"]